[Event "Live Chess"]
[Site "Chess.com"]
[Date "2023.09.16"]
[Round "-"]
[White "ThgDomingues"]
[Black "felipeurbano"]
[Result "1-0"]
[WhiteElo "1479"]
[BlackElo "1245"]
[TimeControl "900+5"]
[EndTime "15:23:39 PDT"]
[Termination "ThgDomingues venceu por xeque-mate"]

1. e4 {[%clk 0:14:59]} 1... e5 {[%clk 0:15:02.5]} 2. Nf3 {[%clk 0:15:01.9]} 2...
Nc6 {[%clk 0:15:04.6]} 3. Bc4 {[%clk 0:15:05.8]} 3... Nf6 {[%clk 0:15:03.7]} 4.
d3 {[%clk 0:15:09.5]} 4... d5 {[%clk 0:15:05.5]} 5. exd5 {[%clk 0:15:13]} 5...
Nxd5 {[%clk 0:15:08.1]} 6. c3 {[%clk 0:15:16.6]} 6... Be6 {[%clk 0:15:04.8]} 7.
Bb3 {[%clk 0:15:04.4]} 7... Nf4 {[%clk 0:14:58]} 8. Bxf4 {[%clk 0:15:02.6]} 8...
exf4 {[%clk 0:14:50.5]} 9. Bxe6 {[%clk 0:15:03.9]} 9... fxe6 {[%clk 0:14:52.9]}
10. O-O {[%clk 0:15:07.7]} 10... Bd6 {[%clk 0:14:49.4]} 11. Re1 {[%clk
0:15:11.3]} 11... Qf6 {[%clk 0:14:51]} 12. Qe2 {[%clk 0:15:03.7]} 12... Nd8
{[%clk 0:14:52.6]} 13. Nbd2 {[%clk 0:15:03.8]} 13... O-O {[%clk 0:14:54.6]} 14.
Ne4 {[%clk 0:15:06.3]} 14... Qe5 {[%clk 0:14:51.4]} 15. Nxe5 {[%clk 0:15:04.5]}
15... Bxe5 {[%clk 0:14:54]} 16. d4 {[%clk 0:15:05]} 16... Bd6 {[%clk 0:14:54.6]}
17. Ng5 {[%clk 0:14:54.4]} 17... Re8 {[%clk 0:14:52.4]} 18. Qh5 {[%clk
0:14:37.5]} 18... h6 {[%clk 0:14:43.5]} 19. Qxe8+ {[%clk 0:14:35.3]} 19... Bf8
{[%clk 0:14:37.6]} 20. Nxe6 {[%clk 0:14:36.4]} 20... Nxe6 {[%clk 0:14:39.5]} 21.
Qxa8 {[%clk 0:14:29]} 21... Kf7 {[%clk 0:14:29.1]} 22. Rxe6 {[%clk 0:14:15.9]}
22... Kxe6 {[%clk 0:14:31.6]} 23. Qxf8 {[%clk 0:14:19]} 23... Kd7 {[%clk
0:14:30.5]} 24. Qxg7+ {[%clk 0:14:21.6]} 24... Kc6 {[%clk 0:14:33.7]} 25. Qxh6+
{[%clk 0:14:23.3]} 25... Kb5 {[%clk 0:14:36.4]} 26. a4+ {[%clk 0:14:24.5]} 26...
Kc4 {[%clk 0:14:36.9]} 27. Qe6+ {[%clk 0:14:24.7]} 27... Kd3 {[%clk 0:14:36.4]}
28. Rd1+ {[%clk 0:14:24.3]} 28... Kc2 {[%clk 0:14:39.3]} 29. Qe2+ {[%clk
0:14:22.5]} 29... Kb3 {[%clk 0:14:40.3]} 30. Qb5+ {[%clk 0:14:26.4]} 30... Kc2
{[%clk 0:14:42.3]} 31. Re1 {[%clk 0:14:14]} 31... f3 {[%clk 0:14:38.5]} 32. gxf3
{[%clk 0:14:15.9]} 32... a6 {[%clk 0:14:40.2]} 33. Qf5+ {[%clk 0:14:09.3]} 33...
Kb3 {[%clk 0:14:41]} 34. c4 {[%clk 0:14:05.2]} 34... b6 {[%clk 0:14:37.7]} 35.
c5 {[%clk 0:14:05.8]} 35... a5 {[%clk 0:14:37.3]} 36. cxb6 {[%clk 0:14:09.3]}
36... cxb6 {[%clk 0:14:38.5]} 37. Re3+ {[%clk 0:14:01]} 37... Kxa4 {[%clk
0:14:38.9]} 38. d5 {[%clk 0:14:02.5]} 38... b5 {[%clk 0:14:38.8]} 39. Qe4+
{[%clk 0:14:02.4]} 39... b4 {[%clk 0:14:41.7]} 40. Qe8# {[%clk 0:13:48.1]} 1-0

[Event "Live Chess"]
[Site "Chess.com"]
[Date "2023.09.16"]
[Round "-"]
[White "advRafael"]
[Black "ThiagoFantim"]
[Result "1-0"]
[WhiteElo "1709"]
[BlackElo "1660"]
[TimeControl "900+5"]
[EndTime "15:24:04 PDT"]
[Termination "advRafael venceu por xeque-mate"]

1. c4 {[%clk 0:15:02.6]} 1... g6 {[%clk 0:15:00.1]} 2. Nc3 {[%clk 0:15:05.5]}
2... Bg7 {[%clk 0:15:03.4]} 3. g3 {[%clk 0:15:08.9]} 3... e6 {[%clk 0:15:07.7]}
4. Bg2 {[%clk 0:15:12.1]} 4... Ne7 {[%clk 0:15:11.9]} 5. Nf3 {[%clk 0:15:15]}
5... O-O {[%clk 0:15:13.9]} 6. O-O {[%clk 0:15:18.2]} 6... d5 {[%clk 0:15:02.6]}
7. cxd5 {[%clk 0:15:19.6]} 7... Nxd5 {[%clk 0:15:06.6]} 8. d4 {[%clk 0:15:17.7]}
8... Nxc3 {[%clk 0:14:57.1]} 9. bxc3 {[%clk 0:15:20.3]} 9... Bd7 {[%clk
0:14:53.8]} 10. Rb1 {[%clk 0:15:21.7]} 10... Bc6 {[%clk 0:14:55.4]} 11. Re1
{[%clk 0:15:21.9]} 11... Nd7 {[%clk 0:14:57.4]} 12. e4 {[%clk 0:15:24.1]} 12...
Nb6 {[%clk 0:14:58.7]} 13. Qb3 {[%clk 0:15:06.1]} 13... Re8 {[%clk 0:14:42.3]}
14. Bf4 {[%clk 0:14:45.8]} 14... h6 {[%clk 0:14:10.1]} 15. Ne5 {[%clk
0:14:01.3]} 15... Bxe5 {[%clk 0:14:08.6]} 16. Bxe5 {[%clk 0:14:02.6]} 16... f6
{[%clk 0:14:02.8]} 17. Bf4 {[%clk 0:14:00.2]} 17... g5 {[%clk 0:14:01.9]} 18.
Be3 {[%clk 0:14:00.2]} 18... f5 {[%clk 0:13:50.5]} 19. exf5 {[%clk 0:13:54.5]}
19... Bxg2 {[%clk 0:13:50.3]} 20. Kxg2 {[%clk 0:13:54.3]} 20... Nd5 {[%clk
0:13:48.7]} 21. fxe6 {[%clk 0:13:50.7]} 21... Nxe3+ {[%clk 0:13:49.5]} 22. Rxe3
{[%clk 0:13:53.8]} 22... Kg7 {[%clk 0:13:44.5]} 23. Qxb7 {[%clk 0:13:48.2]}
23... Qd6 {[%clk 0:13:42.7]} 24. Qe4 {[%clk 0:13:46.4]} 24... Qe7 {[%clk
0:13:29.3]} 25. Rbe1 {[%clk 0:13:39.7]} 25... Rab8 {[%clk 0:13:30.9]} 26. d5
{[%clk 0:13:40.3]} 26... Rb2 {[%clk 0:13:33.4]} 27. Qd4+ {[%clk 0:13:42.8]}
27... Kg8 {[%clk 0:13:33.4]} 28. R1e2 {[%clk 0:13:37.9]} 28... Reb8 {[%clk
0:13:32.8]} 29. Rxb2 {[%clk 0:13:25.8]} 29... Rxb2 {[%clk 0:13:35.7]} 30. Qxa7
{[%clk 0:13:27.4]} 30... Qf6 {[%clk 0:13:24.7]} 31. Rf3 {[%clk 0:13:25.6]} 31...
Qe5 {[%clk 0:13:27.8]} 32. Qa8+ {[%clk 0:13:27.9]} 32... Kg7 {[%clk 0:13:31.3]}
33. Qf8+ {[%clk 0:13:30.5]} 33... Kg6 {[%clk 0:13:35.1]} 34. Qf7# {[%clk
0:13:30.4]} 1-0

[Event "Live Chess"]
[Site "Chess.com"]
[Date "2023.09.16"]
[Round "-"]
[White "MagnusCarlos1996"]
[Black "gustavogarcia10"]
[Result "1-0"]
[WhiteElo "605"]
[BlackElo "446"]
[TimeControl "900+5"]
[EndTime "15:28:40 PDT"]
[Termination "MagnusCarlos1996 venceu por xeque-mate"]

1. e4 {[%clk 0:15:02.4]} 1... c5 {[%clk 0:15:03.1]} 2. Nf3 {[%clk 0:15:05.9]}
2... Nf6 {[%clk 0:15:03.6]} 3. e5 {[%clk 0:15:05.2]} 3... Nh5 {[%clk 0:14:54.4]}
4. d4 {[%clk 0:14:56.7]} 4... cxd4 {[%clk 0:14:57.6]} 5. Nxd4 {[%clk 0:15:00.7]}
5... Qb6 {[%clk 0:14:43.9]} 6. c3 {[%clk 0:14:53.4]} 6... g6 {[%clk 0:14:40.9]}
7. Be2 {[%clk 0:14:55.5]} 7... Bg7 {[%clk 0:14:40.8]} 8. Bxh5 {[%clk 0:14:53.8]}
8... Bxe5 {[%clk 0:14:31.2]} 9. Bf3 {[%clk 0:14:52]} 9... Nc6 {[%clk 0:13:47]}
10. Nxc6 {[%clk 0:14:50.1]} 10... bxc6 {[%clk 0:13:31.4]} 11. O-O {[%clk
0:14:53.4]} 11... O-O {[%clk 0:13:34.5]} 12. Nd2 {[%clk 0:14:52.6]} 12... d6
{[%clk 0:13:25.5]} 13. Nc4 {[%clk 0:14:55.5]} 13... Qc7 {[%clk 0:12:48.4]} 14.
Nxe5 {[%clk 0:14:58.5]} 14... dxe5 {[%clk 0:12:35.8]} 15. Re1 {[%clk 0:15:02.4]}
15... Rd8 {[%clk 0:12:34.5]} 16. Qe2 {[%clk 0:14:58.2]} 16... f6 {[%clk
0:11:39.1]} 17. Qc4+ {[%clk 0:15:00.7]} 17... Kh8 {[%clk 0:11:18.8]} 18. Qxc6
{[%clk 0:15:04.2]} 18... Qxc6 {[%clk 0:11:16.4]} 19. Bxc6 {[%clk 0:15:07.9]}
19... Rb8 {[%clk 0:11:10.4]} 20. b3 {[%clk 0:15:05.5]} 20... Bd7 {[%clk
0:11:11.9]} 21. Bxd7 {[%clk 0:15:07.7]} 21... Rxd7 {[%clk 0:11:15]} 22. Be3
{[%clk 0:15:08]} 22... Rbd8 {[%clk 0:11:16.9]} 23. Kf1 {[%clk 0:15:08.7]} 23...
f5 {[%clk 0:11:17.8]} 24. g3 {[%clk 0:15:10.5]} 24... Kg7 {[%clk 0:11:16.7]} 25.
Ke2 {[%clk 0:15:11.6]} 25... f4 {[%clk 0:11:10.6]} 26. gxf4 {[%clk 0:15:14.3]}
26... exf4 {[%clk 0:11:13.9]} 27. Bxf4 {[%clk 0:15:14.5]} 27... Rf8 {[%clk
0:11:07.3]} 28. Be3 {[%clk 0:15:11.3]} 28... e6 {[%clk 0:11:06.6]} 29. Rad1
{[%clk 0:15:14.3]} 29... Rdf7 {[%clk 0:11:06]} 30. Rd6 {[%clk 0:15:13.9]} 30...
e5 {[%clk 0:10:55.7]} 31. Red1 {[%clk 0:15:16]} 31... Kg8 {[%clk 0:10:38.4]} 32.
Rd8 {[%clk 0:15:02.3]} 32... Rxd8 {[%clk 0:10:12.8]} 33. Rxd8+ {[%clk
0:15:05.6]} 33... Kg7 {[%clk 0:10:16.6]} 34. c4 {[%clk 0:14:58.1]} 34... h6
{[%clk 0:10:14]} 35. c5 {[%clk 0:14:59.6]} 35... Rc7 {[%clk 0:10:15]} 36. Rd6
{[%clk 0:14:57.1]} 36... h5 {[%clk 0:10:11.7]} 37. c6 {[%clk 0:15:00.9]} 37...
Kf7 {[%clk 0:10:12.4]} 38. Rd7+ {[%clk 0:15:05]} 38... Rxd7 {[%clk 0:10:08.5]}
39. cxd7 {[%clk 0:15:09.2]} 39... Ke7 {[%clk 0:10:10.5]} 40. Bxa7 {[%clk
0:15:13.3]} 40... Kxd7 {[%clk 0:10:14]} 41. b4 {[%clk 0:15:17.6]} 41... Kc7
{[%clk 0:10:17.6]} 42. a4 {[%clk 0:15:20.8]} 42... Kb7 {[%clk 0:10:21.9]} 43.
Bc5 {[%clk 0:15:25]} 43... e4 {[%clk 0:10:23.4]} 44. a5 {[%clk 0:15:27.9]} 44...
Ka6 {[%clk 0:10:22]} 45. Ke3 {[%clk 0:15:31.7]} 45... Kb5 {[%clk 0:10:25.5]} 46.
Kxe4 {[%clk 0:15:36]} 46... g5 {[%clk 0:10:25.5]} 47. Kf5 {[%clk 0:15:40]} 47...
g4 {[%clk 0:10:29.2]} 48. Kg5 {[%clk 0:15:44]} 48... g3 {[%clk 0:10:30.7]} 49.
fxg3 {[%clk 0:15:48]} 49... h4 {[%clk 0:10:32.5]} 50. Kxh4 {[%clk 0:15:52.1]}
50... Ka6 {[%clk 0:10:34.5]} 51. g4 {[%clk 0:15:56.4]} 51... Kb7 {[%clk
0:10:38.1]} 52. g5 {[%clk 0:16:00.8]} 52... Kc7 {[%clk 0:10:42.4]} 53. g6 {[%clk
0:16:05.1]} 53... Kd8 {[%clk 0:10:47.1]} 54. g7 {[%clk 0:16:09.5]} 54... Ke8
{[%clk 0:10:50.1]} 55. g8=Q+ {[%clk 0:16:12.9]} 55... Kd7 {[%clk 0:10:53]} 56.
a6 {[%clk 0:16:15.9]} 56... Kc7 {[%clk 0:10:56.9]} 57. a7 {[%clk 0:16:18.8]}
57... Kb7 {[%clk 0:11:01.3]} 58. a8=Q+ {[%clk 0:16:22.2]} 58... Kc7 {[%clk
0:11:04.7]} 59. Qf7# {[%clk 0:16:25.8]} 1-0

[Event "Live Chess"]
[Site "Chess.com"]
[Date "2023.09.16"]
[Round "-"]
[White "mariabeatrizandrade"]
[Black "ppsobral"]
[Result "0-1"]
[WhiteElo "722"]
[BlackElo "1052"]
[TimeControl "900+5"]
[EndTime "15:30:01 PDT"]
[Termination "ppsobral venceu por desistência"]

1. e4 {[%clk 0:15:01.6]} 1... c5 {[%clk 0:14:57.8]} 2. Nf3 {[%clk 0:15:04.6]}
2... e6 {[%clk 0:14:54.5]} 3. d4 {[%clk 0:15:07.8]} 3... cxd4 {[%clk 0:14:52.3]}
4. Nxd4 {[%clk 0:15:10.8]} 4... Nc6 {[%clk 0:14:53.7]} 5. Be3 {[%clk 0:15:08.6]}
5... Nf6 {[%clk 0:14:38.3]} 6. Nc3 {[%clk 0:15:10]} 6... Bb4 {[%clk 0:14:08.1]}
7. Be2 {[%clk 0:14:50.2]} 7... Nxe4 {[%clk 0:13:48.8]} 8. Qd3 {[%clk 0:14:03.9]}
8... d5 {[%clk 0:13:17.9]} 9. O-O {[%clk 0:13:53]} 9... Qa5 {[%clk 0:12:27.1]}
10. Nxc6 {[%clk 0:13:17.4]} 10... bxc6 {[%clk 0:12:23.9]} 11. Bd4 {[%clk
0:13:05]} 11... O-O {[%clk 0:12:03.8]} 12. f3 {[%clk 0:12:54.8]} 12... Ba6
{[%clk 0:11:04.9]} 13. Qe3 {[%clk 0:12:05.7]} 13... Nxc3 {[%clk 0:10:24]} 14.
Bxa6 {[%clk 0:11:16.9]} 14... Nxa2 {[%clk 0:09:50.5]} 15. Bd3 {[%clk 0:10:39.9]}
15... c5 {[%clk 0:08:55.9]} 16. Bxc5 {[%clk 0:09:50.6]} 16... Bxc5 {[%clk
0:08:50.9]} 17. Qxc5 {[%clk 0:09:52.1]} 17... Qxc5+ {[%clk 0:08:52.9]} 18. Kh1
{[%clk 0:09:44.8]} 18... Nb4 {[%clk 0:08:53.4]} 19. c3 {[%clk 0:09:46.7]} 19...
Nxd3 {[%clk 0:08:54.4]} 0-1

[Event "Live Chess"]
[Site "Chess.com"]
[Date "2023.09.16"]
[Round "-"]
[White "ThiagoFantim"]
[Black "felipeurbano"]
[Result "1-0"]
[WhiteElo "1661"]
[BlackElo "1241"]
[TimeControl "900+5"]
[EndTime "15:30:29 PDT"]
[Termination "ThiagoFantim venceu por xeque-mate"]

1. e4 {[%clk 0:15:04.1]} 1... e5 {[%clk 0:14:59.4]} 2. f4 {[%clk 0:15:07.9]}
2... d6 {[%clk 0:14:59.4]} 3. Nf3 {[%clk 0:15:11.4]} 3... Nc6 {[%clk 0:14:58.4]}
4. fxe5 {[%clk 0:15:15.3]} 4... dxe5 {[%clk 0:15:01.1]} 5. Bc4 {[%clk
0:15:16.3]} 5... Bg4 {[%clk 0:15:02.8]} 6. O-O {[%clk 0:15:20]} 6... h6 {[%clk
0:14:52.2]} 7. h3 {[%clk 0:15:24.1]} 7... Bh5 {[%clk 0:14:54.1]} 8. Qe1 {[%clk
0:15:13.3]} 8... Bc5+ {[%clk 0:14:48.8]} 9. Kh1 {[%clk 0:15:16.5]} 9... Qf6
{[%clk 0:14:39.2]} 10. d3 {[%clk 0:15:03.2]} 10... Nd4 {[%clk 0:14:27.9]} 11.
Nxd4 {[%clk 0:15:03.6]} 11... Bxd4 {[%clk 0:14:29.4]} 12. Rxf6 {[%clk
0:15:07.4]} 12... Nxf6 {[%clk 0:14:23.4]} 13. c3 {[%clk 0:15:09.7]} 13... Bc5
{[%clk 0:14:22.9]} 14. Be3 {[%clk 0:15:13.2]} 14... Be7 {[%clk 0:14:21.7]} 15.
Nd2 {[%clk 0:15:16.1]} 15... O-O {[%clk 0:14:21.9]} 16. Nf3 {[%clk 0:15:18.2]}
16... a6 {[%clk 0:14:16.3]} 17. Qg3 {[%clk 0:15:19.8]} 17... Kh8 {[%clk
0:14:14]} 18. Nxe5 {[%clk 0:15:18.4]} 18... Rg8 {[%clk 0:14:08.8]} 19. Nxf7+
{[%clk 0:15:18.7]} 19... Bxf7 {[%clk 0:14:10]} 20. Bxf7 {[%clk 0:15:23.6]} 20...
Raf8 {[%clk 0:14:09]} 21. Bxg8 {[%clk 0:15:27]} 21... Rxg8 {[%clk 0:14:11.5]}
22. Bd4 {[%clk 0:15:30.7]} 22... Nh5 {[%clk 0:14:13.9]} 23. Qxc7 {[%clk
0:15:32.9]} 23... Bf6 {[%clk 0:14:07.2]} 24. Bxf6 {[%clk 0:15:35]} 24... gxf6
{[%clk 0:14:04.1]} 25. Qf7 {[%clk 0:15:36.5]} 25... Ng3+ {[%clk 0:14:01.3]} 26.
Kh2 {[%clk 0:15:39.2]} 26... f5 {[%clk 0:13:58]} 27. exf5 {[%clk 0:15:41.2]}
27... h5 {[%clk 0:13:56]} 28. Qe7 {[%clk 0:15:41.6]} 28... Rg7 {[%clk
0:13:55.2]} 29. Qe8+ {[%clk 0:15:38.6]} 29... Kh7 {[%clk 0:13:54.6]} 30. Qg6+
{[%clk 0:15:37.3]} 30... Rxg6 {[%clk 0:13:56.6]} 31. fxg6+ {[%clk 0:15:42.2]}
31... Kxg6 {[%clk 0:14:00]} 32. Kxg3 {[%clk 0:15:47.1]} 32... Kg5 {[%clk
0:14:01]} 33. Re1 {[%clk 0:15:51]} 33... h4+ {[%clk 0:14:01.8]} 34. Kf3 {[%clk
0:15:55.4]} 34... b5 {[%clk 0:14:02.2]} 35. d4 {[%clk 0:15:59.6]} 35... Kf5
{[%clk 0:14:03.2]} 36. d5 {[%clk 0:16:03.9]} 36... a5 {[%clk 0:14:06.2]} 37. d6
{[%clk 0:16:08.2]} 37... b4 {[%clk 0:14:09.4]} 38. d7 {[%clk 0:16:12.7]} 38...
bxc3 {[%clk 0:14:13.3]} 39. d8=Q {[%clk 0:16:16.9]} 39... cxb2 {[%clk
0:14:16.7]} 40. Qd5+ {[%clk 0:16:20.7]} 40... Kf6 {[%clk 0:14:20]} 41. Re6+
{[%clk 0:16:24.8]} 41... Kf7 {[%clk 0:14:23.6]} 42. Qd7+ {[%clk 0:16:28.9]}
42... Kf8 {[%clk 0:14:24.8]} 43. Re8# {[%clk 0:16:33.8]} 1-0

[Event "Live Chess"]
[Site "Chess.com"]
[Date "2023.09.16"]
[Round "-"]
[White "gustavogarcia10"]
[Black "ppsobral"]
[Result "1-0"]
[WhiteElo "462"]
[BlackElo "1036"]
[TimeControl "900+5"]
[EndTime "15:41:46 PDT"]
[Termination "gustavogarcia10 venceu por desistência"]

1. e4 {[%clk 0:15:00.1]} 1... c5 {[%clk 0:15:02]} 2. Bb5 {[%clk 0:14:57.1]} 2...
Nc6 {[%clk 0:14:43]} 3. Nf3 {[%clk 0:14:57.7]} 3... d6 {[%clk 0:14:36.7]} 4.
Bxc6+ {[%clk 0:15:00.7]} 4... bxc6 {[%clk 0:14:38.7]} 5. O-O {[%clk 0:14:59.6]}
5... e5 {[%clk 0:14:09.7]} 6. b3 {[%clk 0:14:54]} 6... Nf6 {[%clk 0:14:01.8]} 7.
Re1 {[%clk 0:14:44.9]} 7... g6 {[%clk 0:13:56.9]} 8. Bb2 {[%clk 0:14:44.9]} 8...
Qe7 {[%clk 0:13:52.7]} 9. d3 {[%clk 0:14:46.3]} 9... Bg7 {[%clk 0:13:50.7]} 10.
a4 {[%clk 0:13:36.6]} 10... O-O {[%clk 0:13:45.1]} 11. c3 {[%clk 0:13:31.8]}
11... Rb8 {[%clk 0:13:23.2]} 12. d4 {[%clk 0:13:31.6]} 12... c4 {[%clk
0:13:06.6]} 13. Ba3 {[%clk 0:12:57.9]} 13... Rxb3 {[%clk 0:12:52.9]} 14. dxe5
{[%clk 0:12:39.1]} 14... dxe5 {[%clk 0:12:52.2]} 15. Bxe7 {[%clk 0:12:39.8]}
15... Re8 {[%clk 0:12:42.5]} 16. Nfd2 {[%clk 0:12:28]} 16... Rb8 {[%clk
0:12:21.1]} 17. Bd6 {[%clk 0:12:17]} 17... Rb7 {[%clk 0:12:08.3]} 18. Bxe5
{[%clk 0:12:16.6]} 18... Rxe5 {[%clk 0:12:01.7]} 19. Nxc4 {[%clk 0:12:20.1]}
19... Rg5 {[%clk 0:11:33.2]} 20. Qd8+ {[%clk 0:12:20.1]} 20... Bf8 {[%clk
0:11:20.2]} 21. Qxc8 {[%clk 0:12:11.5]} 21... Re7 {[%clk 0:11:15.5]} 22. Qxc6
{[%clk 0:11:23.4]} 22... Nxe4 {[%clk 0:11:12.8]} 23. Rxe4 {[%clk 0:11:19.6]}
23... Rxe4 {[%clk 0:11:13.8]} 24. Qxe4 {[%clk 0:11:22.6]} 24... f5 {[%clk
0:11:15.4]} 1-0

[Event "Live Chess"]
[Site "Chess.com"]
[Date "2023.09.16"]
[Round "-"]
[White "mariabeatrizandrade"]
[Black "MagnusCarlos1996"]
[Result "0-1"]
[WhiteElo "651"]
[BlackElo "754"]
[TimeControl "900+5"]
[EndTime "15:43:00 PDT"]
[Termination "MagnusCarlos1996 venceu por desistência"]

1. e4 {[%clk 0:15:03.2]} 1... e5 {[%clk 0:15:03.8]} 2. Nf3 {[%clk 0:15:07.2]}
2... Nf6 {[%clk 0:15:07.9]} 3. Nc3 {[%clk 0:15:04.2]} 3... Nc6 {[%clk
0:15:11.2]} 4. d4 {[%clk 0:14:51.8]} 4... exd4 {[%clk 0:15:03]} 5. Nxd4 {[%clk
0:14:53.9]} 5... Nxd4 {[%clk 0:15:03.2]} 6. Qxd4 {[%clk 0:14:56.1]} 6... b6
{[%clk 0:15:00.9]} 7. Qe3 {[%clk 0:14:54.9]} 7... Bc5 {[%clk 0:15:02.6]} 8. Qg3
{[%clk 0:14:51.1]} 8... O-O {[%clk 0:15:02.2]} 9. Bh6 {[%clk 0:14:45.6]} 9...
Nh5 {[%clk 0:14:54.6]} 10. Qg4 {[%clk 0:14:14.2]} 10... Bxf2+ {[%clk 0:14:52.4]}
11. Kxf2 {[%clk 0:14:09]} 11... Qf6+ {[%clk 0:14:56.5]} 12. Ke1 {[%clk
0:13:01.8]} 12... Qxh6 {[%clk 0:14:57.2]} 13. Bd3 {[%clk 0:12:57.4]} 13... d5
{[%clk 0:14:53.4]} 14. Qf3 {[%clk 0:12:28.5]} 14... dxe4 {[%clk 0:14:16.8]} 15.
Bxe4 {[%clk 0:12:23.5]} 15... Re8 {[%clk 0:14:18.5]} 16. Kf2 {[%clk 0:12:08]}
16... Rb8 {[%clk 0:14:10.8]} 17. Rhe1 {[%clk 0:11:57.4]} 17... Ba6 {[%clk
0:13:46.3]} 18. Re3 {[%clk 0:10:47.8]} 18... Nf6 {[%clk 0:13:33.2]} 19. Rae1
{[%clk 0:10:06.7]} 19... Nxe4+ {[%clk 0:13:30]} 20. Rxe4 {[%clk 0:09:56.9]}
20... Rxe4 {[%clk 0:13:17.3]} 21. Rxe4 {[%clk 0:09:50.5]} 21... Qd2+ {[%clk
0:12:47.7]} 22. Ne2 {[%clk 0:09:10.3]} 22... Bb7 {[%clk 0:12:48.9]} 23. Rd4
{[%clk 0:08:27.5]} 23... Qxd4+ {[%clk 0:12:49.9]} 24. Nxd4 {[%clk 0:08:30.3]}
24... Bxf3 {[%clk 0:12:54]} 25. Nxf3 {[%clk 0:08:33.8]} 25... f6 {[%clk
0:12:50.8]} 0-1

[Event "Live Chess"]
[Site "Chess.com"]
[Date "2023.09.16"]
[Round "-"]
[White "ThgDomingues"]
[Black "advRafael"]
[Result "1-0"]
[WhiteElo "1527"]
[BlackElo "1697"]
[TimeControl "900+5"]
[EndTime "15:45:38 PDT"]
[Termination "ThgDomingues venceu por desistência"]

1. e4 {[%clk 0:15:00.8]} 1... e6 {[%clk 0:15:02.5]} 2. Nf3 {[%clk 0:15:02.4]}
2... d5 {[%clk 0:15:06.2]} 3. exd5 {[%clk 0:14:58.4]} 3... exd5 {[%clk
0:15:09.7]} 4. d4 {[%clk 0:15:00.2]} 4... Nf6 {[%clk 0:15:12.7]} 5. Bd3 {[%clk
0:14:57.7]} 5... Be7 {[%clk 0:15:10.8]} 6. O-O {[%clk 0:15:01.3]} 6... O-O
{[%clk 0:15:14.3]} 7. Re1 {[%clk 0:15:05.4]} 7... c6 {[%clk 0:15:17]} 8. Bg5
{[%clk 0:15:08.5]} 8... Bg4 {[%clk 0:15:19.4]} 9. Nbd2 {[%clk 0:15:06.9]} 9...
Nbd7 {[%clk 0:15:21.7]} 10. Nf1 {[%clk 0:15:08.1]} 10... h6 {[%clk 0:15:23.7]}
11. Bh4 {[%clk 0:14:57.6]} 11... Re8 {[%clk 0:15:19.9]} 12. Ne3 {[%clk
0:14:45.9]} 12... Bh5 {[%clk 0:15:13.2]} 13. c3 {[%clk 0:13:58.7]} 13... Bd6
{[%clk 0:15:02.2]} 14. Qd2 {[%clk 0:13:39.3]} 14... Qc7 {[%clk 0:15:02.7]} 15.
Nf5 {[%clk 0:13:12.5]} 15... Bxf3 {[%clk 0:14:47.5]} 16. Nxd6 {[%clk 0:13:13]}
16... Qxd6 {[%clk 0:14:43.6]} 17. gxf3 {[%clk 0:12:29.9]} 17... Nh5 {[%clk
0:14:24.9]} 18. Kh1 {[%clk 0:12:03.7]} 18... Re6 {[%clk 0:13:41.3]} 19. Bf5
{[%clk 0:11:23]} 19... Rxe1+ {[%clk 0:12:54.8]} 20. Rxe1 {[%clk 0:11:27.9]}
20... c5 {[%clk 0:12:57.7]} 21. Rg1 {[%clk 0:10:48.5]} 21... Kh8 {[%clk
0:12:31.6]} 22. Bg4 {[%clk 0:07:47]} 22... Nhf6 {[%clk 0:12:10.4]} 23. Bg3
{[%clk 0:06:28.8]} 23... Qb6 {[%clk 0:11:49.2]} 24. Bxd7 {[%clk 0:06:17]} 24...
Nxd7 {[%clk 0:11:51.3]} 25. Qf4 {[%clk 0:04:06.4]} 25... cxd4 {[%clk 0:10:30.6]}
26. Qxf7 {[%clk 0:03:54.3]} 26... Nf6 {[%clk 0:09:37.7]} 27. Bc7 {[%clk
0:03:53.7]} 1-0